bitfinex-derivatives/quotes_ETHF0:USTF0_20260201
["timestamp","ask_amount","ask_price","bid_price","bid_amount"]
[1769980275255,2.26877236,2299.4,2298.4,0.22196456]
[1769980275658,4.3424,2299.3,2298.4,0.22196456]
[1769980276060,4.3424,2299.2,2298.4,0.22196456]
[1769980276260,2.26877236,2299.9,2298.4,2.59860285]
[1769980276461,2.26877236,2299.7,2298.4,2.59860285]
[1769980276659,2.26877236,2299.5,2298.4,0.22196456]
[1769980276856,2.26877236,2299.3,2298.4,0.22196456]
[1769980277259,4.3424,2299.0,2298.4,0.22196456]
[1769980277557,2.26877236,2299.2,2297.9,2.37663829]
[1769980277760,0.21765,2299.6,2297.8,3.915]
[1769980277761,2.26877236,2299.1,2297.8,3.915]
[1769980277961,2.26877236,2298.8,2297.8,3.915]
[1769980278357,4.3424,2298.5,2297.8,3.915]
[1769980278760,2.26877236,2298.8,2297.8,3.915]
[1769980278960,2.26877236,2298.6,2297.5,2.37663829]
[1769980279265,2.26877236,2299.0,2297.5,2.37663829]
[1769980279467,2.26877236,2298.9,2297.1,2.76889]
[1769980279669,2.26877236,2298.4,2297.1,2.551]
[1769980280062,2.26877236,2298.1,2297.1,2.551]
[1769980280263,2.26877236,2298.7,2297.2,2.37663829]
[1769980280461,2.26877236,2298.4,2297.2,2.37663829]
[1769980280666,2.26877236,2298.4,2297.1,2.551]
[1769980280667,2.26877236,2298.2,2297.1,2.551]
[1769980280961,2.26877236,2298.2,2296.9,3.916]
[1769980281267,6.61117236,2298.0,2296.9,3.916]
[1769980281464,2.26877236,2297.9,2296.9,3.916]
[1769980281769,6.61117236,2297.3,2296.0,2.37663829]
[1769980281964,2.26877236,2297.7,2296.0,2.37663829]
[1769980283469,4.1338,2298.1,2296.0,2.59462829]
[1769980283470,2.26877236,2298.1,2296.0,2.59462829]
[1769980284268,2.48654236,2298.5,2296.3,2.37663829]
[1769980284468,2.26877236,2298.5,2296.8,2.59455829]
[1769980284771,2.26877236,2298.5,2297.0,2.37663829]
[1769980284966,2.26877236,2297.3,2295.7,2.37663829]
[1769980285671,2.26877236,2298.2,2295.9,2.37663829]
[1769980285871,2.26877236,2298.1,2295.9,2.37663829]
[1769980286469,2.26877236,2298.1,2295.9,2.59462829]
[1769980286663,2.26877236,2298.0,2295.9,2.59462829]
[1769980287166,2.26877236,2298.0,2296.0,0.21798]
[1769980287372,2.26877236,2296.9,2295.2,2.37663829]
[1769980287771,2.26877236,2297.4,2295.2,2.37663829]
[1769980288173,2.26877236,2297.4,2295.4,2.37663829]
[1769980288467,2.26877236,2297.4,2295.6,2.37663829]
[1769980288865,6.61117236,2297.3,2295.6,2.37663829]
[1769980289164,38.15868932,2298.4,2295.6,2.37663829]
[1769980289165,2.26877236,2297.7,2295.6,2.37663829]
[1769980289366,2.26877236,2297.7,2295.5,9.95765076]
[1769980289367,2.26877236,2297.7,2295.9,2.37663829]
[1769980289766,2.26877236,2297.6,2295.9,2.37663829]
[1769980290062,4.3424,2297.6,2295.9,2.37663829]
[1769980290270,2.26877236,2298.7,2296.6,2.59456829]
[1769980290566,2.26877236,2297.5,2295.9,2.37663829]
[1769980291171,2.26877236,2297.4,2295.9,2.37663829]
[1769980291568,4.3424,2296.9,2295.9,2.37663829]
[1769980291767,2.26877236,2297.6,2295.9,2.37663829]
[1769980292468,41.64334008,2298.4,2295.4,3.919]
[1769980292469,2.26877236,2298.4,2296.7,2.37663829]
[1769980292668,2.26877236,2298.4,2296.9,2.37663829]
[1769980293069,4.3424,2298.3,2296.9,2.37663829]
[1769980293468,4.3424,2297.6,2296.8,3.919]
[1769980293672,2.26877236,2297.6,2296.1,2.37663829]
[1769980293975,6.61117236,2296.9,2295.7,2.37663829]
[1769980294171,4.3424,2296.7,2295.7,2.37663829]
[1769980294372,2.26877236,2297.3,2295.9,2.37663829]
[1769980294575,4.3424,2297.1,2295.9,2.37663829]
[1769980295074,2.26877236,2297.3,2295.9,2.37663829]
[1769980295373,4.3424,2297.2,2295.9,2.37663829]
[1769980295673,4.3424,2296.8,2295.9,2.37663829]
[1769980295868,0.00463515,2296.8,2295.9,2.38109348]
[1769980296371,2.26877236,2298.2,2295.9,2.38109348]
[1769980296568,3.92,2298.7,2296.8,2.37663829]
[1769980296767,2.26877236,2298.6,2297.0,2.37663829]
[1769980296971,2.26877236,2298.5,2296.9,3.92]
[1769980297176,2.26877236,2298.2,2296.9,6.29663829]
[1769980297377,0.0054888,2298.2,2297.0,2.37663829]
[1769980297572,4.3424,2298.1,2297.0,2.37663829]
[1769980297772,4.3424,2297.9,2297.0,2.37663829]
[1769980298175,7.40369413,2299.3,2297.0,2.37663829]
[1769980298475,2.36716983,2298.9,2297.4,2.35137082]
[1769980298677,4.3424,2298.3,2297.4,2.35137082]
[1769980299070,2.36716983,2298.9,2297.4,2.35137082]
[1769980299274,4.3424,2298.3,2297.4,2.35137082]
[1769980299468,4.3424,2298.0,2297.4,2.35137082]
[1769980299677,4.3424,2298.1,2297.4,2.35137082]
[1769980299871,2.36716983,2298.6,2297.4,2.35137082]
[1769980300478,4.3424,2298.2,2297.4,2.35137082]
[1769980300879,4.3424,2298.0,2297.4,2.35137082]
[1769980301077,4.3424,2298.2,2297.4,2.35137082]
[1769980301574,0.00475055,2298.9,2297.4,2.35137082]
[1769980301775,4.3424,2298.7,2297.6,2.35137082]
[1769980302080,2.37192038,2298.9,2297.6,2.35660598]
[1769980302276,4.3424,2298.6,2297.6,2.35660598]
[1769980302780,4.3424,2298.4,2297.6,2.35660598]
[1769980303077,6.71432038,2298.9,2297.6,2.35660598]
[1769980303273,2.37192038,2298.9,2297.6,2.35660598]
[1769980303480,4.3424,2298.6,2297.6,2.35660598]
[1769980303679,0.00475055,2298.9,2297.6,2.35660598]
[1769980303881,4.3424,2298.6,2297.6,2.35660598]
[1769980304282,4.3424,2298.4,2297.6,2.35660598]
[1769980304483,4.3424,2298.6,2297.6,2.35660598]
[1769980304884,4.3424,2298.4,2297.6,2.35660598]
[1769980305084,4.3424,2298.6,2297.6,2.35660598]
[1769980305478,4.3424,2298.4,2297.6,2.35660598]
[1769980305676,2.44465243,2298.5,2297.6,0.00523516]
[1769980305879,4.3424,2298.2,2297.6,0.00523516]
[1769980306383,3.49557833,2298.0,2297.6,0.00523516]
[1769980306682,3.49557833,2298.1,2297.3,2.2906541]
[1769980306882,2.44465243,2298.4,2297.3,2.2906541]
[1769980307084,2.44465243,2298.2,2296.9,8.9835641]
[1769980307285,2.44465243,2298.1,2296.9,8.7656541]
[1769980307484,3.49557833,2297.9,2296.9,8.7656541]
[1769980307680,3.49557833,2297.9,2297.0,2.2906541]
[1769980307884,3.49557833,2297.8,2297.0,2.2906541]
[1769980308086,38.15868932,2298.6,2297.0,2.2906541]
[1769980308385,3.49557833,2298.3,2297.2,2.2906541]
[1769980308590,2.44465243,2298.2,2297.2,2.2906541]
[1769980308787,3.49557833,2298.0,2297.2,2.2906541]
[1769980308987,3.49557833,2297.9,2297.2,2.2906541]
[1769980309287,3.49557833,2298.1,2297.2,2.2906541]
[1769980309589,3.49557833,2298.6,2297.2,2.2906541]
[1769980310490,3.49557833,2298.6,2297.2,2.5085341]
[1769980310687,3.49557833,2298.6,2296.9,9.96502123]
[1769980310688,0.00475055,2298.9,2297.6,2.5084941]
[1769980311092,3.49557833,2298.7,2297.6,2.5084941]
[1769980311292,0.00475055,2298.9,2297.6,2.5084941]
[1769980311484,3.49557833,2298.8,2297.6,2.5084941]
[1769980311893,3.49557833,2298.7,2297.6,2.5084941]
[1769980312389,2.44940298,2298.9,2297.6,2.2906541]
[1769980312589,3.49557833,2298.7,2297.6,2.2906541]
[1769980314491,3.49557833,2298.7,2297.6,2.5084941]
[1769980318391,2.44465243,2298.6,2297.5,3.919]
[1769980318592,3.49557833,2298.7,2297.6,2.2906541]
[1769980320184,3.49557833,2298.7,2297.8,2.2906541]
[1769980320392,2.5635714,2299.6,2298.3,2.2906541]
[1769980320691,2.44465243,2299.4,2297.8,2.2906541]
[1769980320989,2.44465243,2299.4,2297.0,3.48465076]
[1769980320990,2.44465243,2298.7,2297.1,2.2906541]
[1769980321194,2.44465243,2298.7,2297.0,3.919]
[1769980321195,5.00822383,2298.4,2297.0,3.919]
[1769980321398,2.44465243,2298.0,2297.0,3.919]
[1769980321599,2.44465243,2297.8,2297.0,2.53423516]
[1769980322290,2.44465243,2297.7,2297.0,2.53423516]
[1769980323092,2.44465243,2297.7,2296.9,0.00537047]
[1769980323893,2.44465243,2297.7,2296.3,6.473]
[1769980324095,2.44465243,2297.2,2295.5,4.13704]
[1769980324294,2.44465243,2297.0,2295.6,2.554]
[1769980324896,2.44465243,2297.0,2295.6,4.84787046]
[1769980325396,2.56189023,2297.4,2295.8,2.5086641]
[1769980325595,5.00654266,2297.5,2295.8,2.5086641]
[1769980325792,2.44465243,2297.4,2295.8,2.5086641]
[1769980325988,2.44465243,2297.3,2295.8,2.5086641]
[1769980326497,2.44465243,2297.1,2295.6,2.55721636]
[1769980326698,2.56189023,2297.1,2295.9,2.2906541]
[1769980326896,2.44465243,2297.5,2296.1,2.2906541]
[1769980327694,2.56189023,2297.7,2296.2,2.41079167]
[1769980327899,2.35235672,2298.2,2296.9,2.41079167]
[1769980328196,2.35235672,2298.1,2296.9,2.554]
[1769980328392,2.35235672,2298.0,2296.9,2.554]
[1769980328595,2.35235672,2298.0,2296.2,7.46638215]
[1769980328596,2.35235672,2297.9,2296.2,0.21797]
[1769980328794,2.35235672,2297.8,2296.4,2.41079167]
[1769980328991,2.35235672,2297.8,2296.4,2.62874167]
[1769980329392,2.35235672,2297.8,2296.4,2.41079167]
[1769980330193,2.35235672,2297.7,2296.4,2.41079167]
[1769980331397,2.56189023,2297.9,2296.4,2.41079167]
[1769980331597,0.00357269,2298.4,2297.2,2.41079167]
[1769980331799,0.00357269,2298.4,2297.4,2.41079167]
[1769980331997,0.00357269,2298.4,2297.4,2.41416412]
[1769980333000,4.91424695,2299.1,2297.8,2.41079167]
[1769980333194,2.35235672,2299.1,2297.8,2.41079167]
[1769980333802,2.35235672,2299.5,2298.0,2.41079167]
[1769980334100,2.35540578,2299.5,2298.4,2.41079167]
[1769980334297,2.35540578,2299.5,2298.5,6.33079167]
[1769980334498,2.56189023,2300.1,2298.6,2.41079167]
[1769980334698,2.35235672,2300.2,2298.6,2.41079167]
[1769980335101,2.35235672,2300.1,2298.6,2.41079167]
[1769980335505,2.35636579,2300.1,2298.6,2.41079167]
[1769980336102,2.35636579,2300.1,2298.5,3.92]
[1769980336408,2.35235672,2299.7,2298.5,3.92]
[1769980337608,2.35235672,2299.4,2298.5,3.92]
[1769980345108,4.91424695,2299.8,2298.6,2.41079167]
[1769980345304,4.91424695,2299.8,2298.5,3.92]
[1769980345305,2.35235672,2299.8,2298.5,3.92]
[1769980345509,2.56999672,2299.8,2298.5,3.92]
[1769980346515,2.35235672,2299.8,2298.6,2.41079167]
[1769980347407,0.00400907,2300.1,2298.6,2.41079167]
[1769980347408,2.35636579,2300.1,2298.6,2.41079167]
[1769980348715,2.56189023,2300.9,2299.5,2.41079167]
[1769980349014,2.35235672,2301.4,2299.8,2.41079167]
[1769980349204,2.35235672,2301.4,2299.9,8.88179167]
[1769980349816,2.3562823,2301.4,2299.9,8.88659041]
[1769980350114,2.3562823,2301.4,2300.0,2.41079167]
[1769980350310,0.00392558,2301.4,2300.2,2.41079167]
[1769980350710,2.3562823,2301.4,2300.3,6.47]
[1769980350916,2.3562823,2301.4,2300.3,8.88079167]
[1769980351312,0.00392558,2301.4,2300.4,2.41079167]
[1769980352012,2.35235672,2302.1,2300.4,2.41079167]
[1769980352212,2.35235672,2302.1,2300.7,2.41079167]
[1769980353013,2.3572443,2302.1,2300.7,2.41079167]
[1769980353213,2.3572443,2302.1,2300.3,6.47]
[1769980353214,2.3572443,2302.1,2300.4,2.41079167]
[1769980354410,2.3572443,2302.1,2300.8,1.9344121]
[1769980355613,2.3572443,2302.1,2300.8,2.1519521]
[1769980355816,0.00488758,2302.1,2300.8,2.1519521]
[1769980356209,0.00488758,2302.1,2301.0,1.47526453]
[1769980356414,0.00488758,2302.1,2301.0,1.69278453]
[1769980356818,0.00488758,2302.1,2301.2,1.05462081]
[1769980357114,2.35235672,2302.7,2301.4,1.05462081]
[1769980357317,2.35235672,2303.3,2301.6,1.05462081]
[1769980357710,2.35235672,2303.3,2301.8,0.15560067]
[1769980357912,0.00415216,2303.3,2302.2,0.15560067]
[1769980358117,1.18164981,2303.6,2302.4,0.15560067]
[1769980359127,1.18476155,2303.6,2302.4,0.15560067]
[1769980359619,1.18476155,2303.6,2301.8,0.0042391]
[1769980359920,1.18476155,2303.6,2301.9,6.466]
[1769980361718,1.18476155,2303.6,2301.8,3.9182391]
[1769980362018,1.18476155,2303.6,2301.8,6.4682391]
[1769980363225,1.18476155,2303.6,2301.8,6.6856791]
[1769980363527,1.18476155,2303.6,2301.8,4.1346791]
[1769980363729,1.18476155,2303.6,2301.9,2.55]
[1769980364427,1.40204155,2303.6,2301.9,2.55]
[1769980370337,1.40204155,2303.6,2302.0,0.21742]
[1769980370534,1.19764023,2303.4,2301.9,2.55]
[1769980370733,1.41493023,2303.4,2301.9,2.55]
[1769980370934,1.19764023,2303.4,2301.9,2.55]
[1769980373131,1.19764023,2303.4,2302.2,0.21741]
[1769980373733,0.00311174,2303.6,2301.9,2.55]
[1769980373734,0.00311174,2303.6,2302.3,0.21739]
[1769980374137,0.00311174,2303.6,2302.4,0.21738]
[1769980374337,1.19876688,2304.0,2302.5,0.21737]
[1769980374739,1.19877853,2304.4,2302.4,0.21738]
[1769980375036,1.19877853,2304.4,2302.5,6.461]
[1769980375238,1.20189027,2304.4,2302.5,6.461]
[1769980375433,1.19877853,2304.2,2302.5,6.461]
[1769980375638,1.19877853,2304.2,2302.4,0.21738]
[1769980375840,1.19877853,2303.6,2302.5,6.461]
[1769980376135,1.19877853,2303.6,2301.9,0.21743]
[1769980376341,1.20189027,2303.4,2301.9,3.912]
[1769980376542,1.19877853,2303.4,2301.9,6.461]
[1769980376740,1.20034564,2303.2,2301.9,6.461]
[1769980377242,1.20034564,2302.9,2301.9,6.461]
[1769980378036,1.20034564,2302.9,2301.9,6.67843]
[1769980379439,1.19854545,2303.4,2302.4,0.21738]
[1769980379645,1.19854545,2304.0,2302.4,0.21738]
[1769980380241,1.19854545,2304.0,2302.6,0.21737]
[1769980380448,1.19854545,2304.0,2303.0,0.21733]
[1769980380646,1.19854545,2304.0,2303.1,6.67732]
[1769980380836,1.19918265,2304.3,2303.3,0.2173]
[1769980381344,0.00335158,2304.4,2303.3,0.2173]
[1769980381544,38.15868932,2305.4,2303.5,0.21728]
[1769980381735,38.15868932,2305.3,2303.5,0.21728]
[1769980381938,5.0365243,2305.5,2303.1,3.911]
[1769980381939,38.15868932,2304.9,2303.1,3.911]
[1769980382136,38.16180106,2304.8,2303.1,6.46]
[1769980382338,38.15868932,2304.0,2302.1,2.58394373]
[1769980382644,38.15868932,2303.4,2302.1,0.00309527]
[1769980383141,38.15868932,2303.5,2302.1,0.00309527]
[1769980383550,0.60435426,2302.9,2302.1,0.00309527]
[1769980383945,0.60435426,2302.7,2302.1,0.00309527]
[1769980384643,38.15868932,2303.0,2301.5,6.459]
[1769980384840,0.603493,2302.8,2301.5,6.459]
[1769980385040,0.603493,2302.8,2301.5,9.04294373]
[1769980385645,0.603493,2302.8,2301.5,9.0482599]
[1769980386044,0.603493,2302.8,2301.7,2.58394373]
[1769980387047,0.60215253,2303.1,2301.7,2.80139373]
[1769980387249,0.60215253,2303.1,2301.9,2.58394373]
[1769980388950,0.60286987,2302.6,2301.8,2.58394373]
[1769980389252,0.60286987,2302.6,2301.6,2.549]
[1769980389650,0.60598161,2302.6,2301.6,2.549]
[1769980390151,0.60286987,2302.9,2301.7,2.58394373]
[1769980390552,0.60286987,2302.9,2301.6,5.13294373]
[1769980390754,0.60273304,2302.7,2301.5,0.00531617]
[1769980390952,0.60584478,2302.5,2301.5,2.55431617]
[1769980391153,0.60273304,2302.2,2301.5,2.55431617]
[1769980391459,0.60910471,2302.2,2301.5,0.00531617]
[1769980391757,0.60273304,2301.9,2301.3,2.549]
[1769980392152,0.60273304,2301.5,2301.3,2.549]
[1769980392653,0.00325993,2302.2,2301.3,2.55314545]
[1769980393748,0.00325993,2302.2,2301.3,0.00414545]
[1769980393954,38.15868932,2302.1,2300.9,2.549]
[1769980394153,38.15868932,2302.0,2300.9,2.549]
[1769980394756,0.29883956,2301.9,2300.9,2.549]
[1769980395053,0.29883956,2301.9,2300.9,2.55211793]
[1769980397456,0.29883956,2301.9,2300.9,0.00311793]
[1769980397760,0.29761931,2301.5,2300.3,3.912]
[1769980397957,0.34050328,2302.1,2300.5,0.03558898]
[1769980398160,0.34050328,2302.1,2300.5,0.25314898]
[1769980398454,0.00325993,2302.2,2300.8,0.03450997]
[1769980398660,0.00325993,2302.2,2300.9,2.58350997]
[1769980399556,0.00325993,2302.2,2300.9,2.549]
[1769980399860,0.22066993,2302.2,2300.8,0.00345717]
[1769980400061,0.15825098,2302.1,2300.8,0.00345717]
[1769980401763,0.15825098,2302.1,2300.8,0.03800625]
[1769980402356,0.15825098,2302.1,2300.9,0.03511352]
[1769980402659,0.00325993,2302.2,2301.2,0.03511352]
[1769980402857,0.00325993,2302.2,2301.3,6.49711352]
[1769980403065,0.15825098,2302.4,2301.3,6.49711352]
[1769980403961,0.16331114,2302.4,2301.3,6.462]
[1769980404165,0.16331114,2302.4,2301.3,3.912]
[1769980406062,0.16331114,2302.4,2300.8,2.5874009]
[1769980406262,0.16331114,2302.4,2300.9,0.03426041]
[1769980407667,0.16331114,2302.4,2301.0,0.03440557]
[1769980408565,0.16331114,2302.4,2301.3,0.03008122]
[1769980409868,0.15825098,2302.7,2301.7,0.03008122]
[1769980410058,0.15825098,2302.7,2301.0,11.69862168]
[1769980410262,0.15825098,2302.7,2301.1,2.55]
[1769980410866,0.16164756,2302.7,2301.1,2.55]
[1769980411469,0.15825098,2302.6,2301.1,2.55]
[1769980411962,0.15825098,2302.6,2301.6,2.720891]
[1769980412765,0.00339658,2302.7,2301.6,0.02987085]
[1769980413067,0.00339658,2302.7,2301.6,2.61381458]
[1769980413363,0.15825098,2302.5,2300.8,3.79708941]
[1769980413568,0.15825098,2302.5,2300.9,0.02987085]
[1769980414166,5.19477528,2302.5,2300.9,0.02987085]
[1769980414363,0.15825098,2302.4,2300.9,0.02987085]
[1769980414560,0.15825098,2302.4,2301.0,0.02918149]
[1769980414964,0.15825098,2302.4,2300.8,3.76721856]
[1769980415567,5.19477528,2302.4,2300.8,0.00345717]
[1769980415767,0.15825098,2302.3,2300.8,0.00345717]
[1769980416267,0.15825098,2302.3,2300.8,3.76721856]
[1769980417373,0.15825098,2302.3,2300.8,3.7971622]
[1769980417574,0.15825098,2302.3,2300.8,3.76721856]
[1769980418766,0.1651735,2302.2,2300.8,3.76721856]
[1769980420474,5.00737378,2302.0,2300.9,0.02922195]
[1769980420668,0.16996079,2302.7,2301.9,2.720891]
[1769980420970,0.16656421,2303.1,2302.0,2.55]
[1769980421168,0.16656421,2303.0,2302.0,2.55]
[1769980421769,0.17025714,2303.0,2302.0,6.31376139]
[1769980422167,0.16656421,2303.4,2302.1,3.76376139]
[1769980422371,0.16656421,2303.4,2302.0,3.76376139]
[1769980422572,0.1651735,2302.9,2301.9,2.55]
[1769980422974,0.1651735,2302.7,2301.9,2.55]
[1769980423175,0.16858113,2302.7,2301.9,2.55]
[1769980423380,4.51338113,2302.7,2301.9,2.55]
[1769980423678,0.1651735,2302.6,2301.9,2.55]
[1769980423877,4.5099735,2302.5,2301.9,2.55]
[1769980424379,4.5099735,2302.4,2301.9,2.55]
[1769980424676,0.1651735,2302.4,2301.6,3.76376139]
[1769980424881,0.00340763,2302.7,2301.3,2.549]
[1769980424882,0.1651735,2302.1,2301.3,2.549]
[1769980428481,0.16365242,2302.5,2301.3,2.549]
[1769980428679,0.16706005,2302.7,2301.5,0.00627411]
[1769980428878,0.16706005,2302.7,2301.5,3.7700355]
[1769980429787,0.16706005,2302.7,2301.5,0.00627411]
[1769980430287,0.16706005,2302.7,2301.5,3.7700355]
[1769980431090,0.16308439,2302.4,2301.4,3.76376139]
[1769980431490,4.50788439,2302.4,2301.4,3.76376139]
[1769980432892,0.16322814,2302.2,2301.4,3.76376139]
[1769980433095,0.16322814,2302.2,2301.3,2.549]
[1769980433286,4.50802814,2302.1,2301.3,2.549]
[1769980433590,0.16322814,2302.4,2301.3,2.549]
[1769980433785,0.16322814,2302.3,2301.3,2.549]
[1769980433991,4.50802814,2302.3,2301.3,2.549]
[1769980435286,0.16298426,2302.2,2301.3,2.549]
[1769980435488,0.16298426,2302.0,2301.0,3.76376139]
[1769980435694,0.16298426,2302.0,2300.9,6.461]
[1769980435888,0.16298426,2301.4,2300.8,0.00345717]
[1769980436093,0.16298426,2301.4,2300.5,6.31276139]
[1769980436287,0.16298426,2301.2,2300.5,6.31276139]
[1769980436994,0.16333403,2301.7,2300.5,6.31634044]
[1769980437196,0.16333403,2301.6,2300.6,3.76376139]
[1769980437693,4.50813403,2301.6,2300.6,3.76376139]
[1769980437992,0.16333403,2301.5,2300.6,3.76376139]
[1769980438190,0.16333403,2301.5,2300.5,6.31634044]
[1769980438391,0.16333403,2301.5,2300.5,6.32325133]
[1769980439989,38.93521806,2302.0,2300.5,0.00357905]
[1769980439990,4.50796552,2301.2,2300.5,0.00357905]
[1769980440189,0.16316552,2301.5,2300.5,0.00357905]
[1769980440588,4.3448,2301.4,2300.5,0.00357905]
[1769980441389,0.1631803,2301.8,2300.8,0.00721835]
[1769980441587,0.1631803,2301.8,2300.9,2.55721835]
[1769980441788,0.1631803,2302.3,2301.0,0.00721835]
[1769980441988,0.1631803,2302.3,2301.3,2.720891]
[1769980442193,0.1631803,2302.6,2301.5,0.00721835]
[1769980442392,0.1631803,2302.6,2301.5,3.77097974]
[1769980442594,4.5079803,2302.6,2301.5,3.77097974]
[1769980442996,0.1631868,2302.5,2301.5,3.77097974]
[1769980443495,38.93521806,2303.0,2301.5,3.77097974]
[1769980443496,0.1631868,2303.1,2301.9,0.00720534]
[1769980443699,0.1631868,2303.1,2302.0,10.23396673]
[1769980443997,0.1631868,2303.1,2302.1,0.00720534]
[1769980444396,38.93521806,2303.6,2302.4,0.00771354]
[1769980444589,0.1629327,2304.1,2302.8,0.00771354]
[1769980444794,0.1629327,2304.1,2303.1,0.00771354]
[1769980444996,0.1629327,2304.1,2303.1,3.92071354]
[1769980445394,0.1629327,2304.1,2303.1,0.00771354]
[1769980445595,0.1629327,2303.5,2302.4,7.68108012]
[1769980445798,0.1629327,2303.2,2302.5,2.55]
[1769980446095,4.5077327,2303.5,2302.5,2.55]
[1769980446301,43.87335848,2304.1,2302.5,2.55]
[1769980446302,0.1629327,2303.1,2302.5,2.55]
[1769980446691,4.50838353,2302.8,2302.4,0.00531873]
[1769980446897,0.16358353,2302.7,2302.2,2.549]
[1769980447399,4.50838353,2302.3,2301.9,2.549]
[1769980447595,0.16358353,2302.3,2301.9,2.549]
[1769980447901,4.3448,2302.2,2301.9,2.55302429]
[1769980448200,4.50840918,2302.0,2301.4,2.549]
[1769980448393,0.00385962,2302.3,2301.4,2.5550742]
[1769980449200,0.00385962,2302.3,2301.4,2.55935691]
[1769980450498,4.5122688,2302.3,2301.4,2.55328271]
[1769980450699,4.3448,2302.0,2301.4,2.55328271]
[1769980450900,0.16360918,2301.9,2300.9,3.76376139]
[1769980451102,0.00385962,2302.3,2300.8,2.549]
[1769980451103,0.16360918,2301.6,2300.8,2.549]
[1769980451307,0.16360918,2301.9,2300.9,0.00688461]
[1769980451498,4.50840918,2301.8,2300.8,2.549]
[1769980451703,4.50840918,2301.5,2300.8,2.549]
[1769980451898,0.16360918,2301.5,2300.8,2.55263442]
[1769980452105,0.16360918,2301.2,2300.8,2.55263442]
[1769980452604,4.3448,2301.1,2300.8,2.55263442]
[1769980453502,0.16662887,2301.9,2300.8,2.55263442]
[1769980453704,3.27645858,2301.7,2300.8,2.55263442]
[1769980453906,3.27645858,2301.6,2300.8,2.55263442]
[1769980454202,0.16662887,2301.3,2300.8,2.55263442]
[1769980454595,3.27645858,2301.0,2300.8,2.55263442]
[1769980454797,3.2169486,2301.0,2300.8,2.55263442]
[1769980455003,0.16644578,2301.6,2300.8,2.55263442]
[1769980455203,3.2169486,2301.5,2300.8,2.55263442]
[1769980455399,0.16644578,2301.6,2300.8,2.55263442]
[1769980455597,3.2169486,2301.4,2300.8,2.55263442]
[1769980456001,0.16644578,2302.2,2300.8,2.55263442]
[1769980456200,0.16644578,2301.8,2300.8,2.55263442]
[1769980456506,0.16679091,2301.6,2300.8,2.55263442]
[1769980456804,0.16679091,2301.4,2300.8,2.55263442]
[1769980457007,0.16679091,2301.2,2300.0,7.67676139]
[1769980457207,0.16679091,2301.2,2300.1,2.55]
[1769980457503,0.16679091,2301.5,2300.1,6.31376139]
[1769980457699,0.16679091,2301.4,2300.0,3.76376139]
[1769980457900,0.16679091,2301.2,2300.0,0.00533162]
[1769980458403,0.16679091,2300.8,2300.0,0.00533162]
[1769980458804,0.16663018,2300.3,2300.0,0.00533162]
[1769980459006,0.17072163,2300.3,2299.8,2.55]
[1769980459203,3.2169486,2300.0,2299.8,2.55]
[1769980459402,3.2169486,2300.0,2299.8,0.98124873]
[1769980459704,3.2169486,2299.9,2299.8,0.98124873]
[1769980460104,1.8269486,2299.9,2299.8,0.98609601]
[1769980461707,1.8269486,2299.9,2299.8,0.00484728]
[1769980462102,1.8269486,2299.9,2299.6,2.55]
[1769980462306,1.8269486,2299.8,2299.6,2.55]
[1769980462506,1.8269486,2299.9,2299.6,2.55]
[1769980463007,1.8269486,2299.8,2299.6,2.55393417]
[1769980463208,1.8269486,2299.9,2299.6,2.55393417]
[1769980463506,1.8269486,2300.0,2299.6,2.55393417]
[1769980463907,1.8269486,2299.9,2299.6,2.55393417]
[1769980464110,1.8269486,2300.0,2299.6,2.55393417]
[1769980464604,1.8269486,2299.8,2299.6,2.55393417]
[1769980464808,1.8269486,2300.0,2299.6,2.55393417]
[1769980465209,0.00409145,2300.3,2299.6,2.55393417]
[1769980465508,1.82910397,2300.3,2299.6,2.55393417]
[1769980465908,0.00409145,2300.3,2299.6,2.77158417]
[1769980466208,0.16662886,2300.9,2299.7,0.21764]
[1769980466407,0.21745,2301.7,2299.6,2.55393417]
[1769980466408,0.16662886,2301.7,2299.8,0.21763]
[1769980466606,0.16645399,2301.3,2299.8,0.21763]
[1769980466803,0.16645399,2301.3,2299.7,3.76376139]
[1769980467000,0.16991731,2301.3,2299.8,3.76376139]
[1769980467199,0.16991731,2301.3,2300.1,0.2176]
[1769980467401,0.16991731,2301.3,2300.2,6.465]
[1769980467610,0.00346332,2301.3,2300.3,0.21758]
[1769980468110,0.00346332,2301.3,2300.4,0.21758]
[1769980468309,0.00346332,2301.3,2300.5,0.21757]
[1769980468505,0.16645399,2301.6,2300.6,0.21755]
[1769980468706,0.16720694,2301.9,2300.6,0.21755]
[1769980468903,0.16720694,2302.5,2300.6,3.76376139]
[1769980469112,0.16720694,2302.5,2300.9,0.21753]
[1769980469310,0.16720694,2302.2,2301.0,2.551]
[1769980469609,0.16720694,2302.2,2301.1,6.465]
[1769980469610,0.17030048,2302.2,2301.1,6.465]
[1769980469810,1.82501252,2301.9,2301.1,6.465]
[1769980470003,1.82501252,2301.8,2301.1,6.465]
[1769980470205,1.82501252,2301.7,2301.1,6.465]
[1769980470609,1.82501252,2301.5,2301.1,6.465]
[1769980470810,1.82501252,2301.7,2301.1,6.465]
[1769980471010,1.82501252,2301.8,2301.1,6.465]
[1769980471414,1.82501252,2301.7,2301.1,6.465]
[1769980471714,1.82501252,2301.8,2301.1,6.465]
[1769980472214,0.16922318,2301.7,2300.6,3.76376139]
[1769980472512,0.16922318,2301.7,2300.7,6.465]
[1769980472906,1.82501252,2301.5,2300.8,2.55]
[1769980473305,1.82501252,2301.1,2300.8,2.55]
[1769980473511,1.82501252,2301.2,2300.8,2.55]
[1769980474010,1.82501252,2300.9,2300.8,2.55]
[1769980474206,1.82501252,2301.4,2300.8,2.55]
[1769980474405,1.82501252,2301.1,2300.8,2.55]
[1769980474813,1.82501252,2300.9,2300.8,2.55]
[1769980475014,1.82501252,2301.1,2300.8,2.55]
[1769980475416,1.82501252,2300.9,2300.8,2.55]
[1769980475616,0.86702222,2300.9,2300.8,2.55]
[1769980476120,0.16738853,2301.5,2300.8,2.55]
[1769980477716,0.16597893,2302.1,2300.9,0.00143813]
[1769980478918,0.16597893,2302.1,2300.9,2.57823852]
[1769980479810,0.16597893,2302.1,2301.1,2.57847212]
[1769980480014,0.16597893,2302.1,2301.2,2.57847212]
[1769980480218,0.16597893,2302.1,2301.3,2.55]
[1769980480420,0.16587828,2302.7,2301.5,0.00163942]
[1769980481421,0.16938696,2302.7,2301.5,2.57843981]
[1769980482015,0.16938696,2302.7,2301.5,2.79590981]
[1769980482216,0.16938696,2302.7,2301.6,2.55]
[1769980484120,0.16938696,2302.7,2301.3,0.00561444]
[1769980484421,39.10460502,2302.7,2301.3,2.55561444]